[Event "*** SCC Grand Prix: Titled Tuesday Blitz"]
[Site "Chess.com"]
[Date "2020.06.02"]
[Round "4"]
[White "DanielDardha2005"]
[Black "Jumbo"]
[Result "0-1"]
[WhiteElo "2659"]
[BlackElo "2841"]
[TimeControl "180+1"]
[EndTime "10:39:04 PDT"]
[Termination "Jumbo won by resignation"]

1. Nf3 {[%clk 0:02:57.8]} 1... g6 {[%clk 0:02:58.5]} 2. c4 {[%clk 0:02:56.9]}
2... Bg7 {[%clk 0:02:58.4]} 3. Nc3 {[%clk 0:02:57.4]} 3... c5 {[%clk 0:02:57.1]}
4. d4 {[%clk 0:02:54.8]} 4... cxd4 {[%clk 0:02:56.6]} 5. Nxd4 {[%clk 0:02:55.7]}
5... Nc6 {[%clk 0:02:57.2]} 6. Nc2 {[%clk 0:02:55.5]} 6... Bxc3+ {[%clk
0:02:53.2]} 7. bxc3 {[%clk 0:02:56.4]} 7... Qa5 {[%clk 0:02:53]} 8. Bd2 {[%clk
0:02:49.3]} 8... d6 {[%clk 0:02:52.7]} 9. e4 {[%clk 0:02:48.6]} 9... Nf6 {[%clk
0:02:44.6]} 10. f3 {[%clk 0:02:44.9]} 10... Be6 {[%clk 0:02:27.2]} 11. Be2
{[%clk 0:01:58.3]} 11... Rc8 {[%clk 0:02:25.1]} 12. O-O {[%clk 0:01:51.4]} 12...
Ne5 {[%clk 0:02:17.7]} 13. Qb1 {[%clk 0:01:33.7]} 13... Nxc4 {[%clk 0:02:03.1]}
14. Bxc4 {[%clk 0:01:27]} 14... Bxc4 {[%clk 0:02:04]} 15. Qxb7 {[%clk
0:01:21.5]} 15... Qa6 {[%clk 0:01:34.3]} 16. Qxa6 {[%clk 0:01:20.6]} 16... Bxa6
{[%clk 0:01:35.2]} 17. Rfc1 {[%clk 0:01:04.4]} 17... Kd7 {[%clk 0:01:34.6]} 18.
Rab1 {[%clk 0:01:01.2]} 18... Rc7 {[%clk 0:01:34.4]} 19. Rb4 {[%clk 0:00:59.7]}
19... Rhc8 {[%clk 0:01:31.4]} 20. Kf2 {[%clk 0:00:57.3]} 20... Ke8 {[%clk
0:01:22]} 21. Ne3 {[%clk 0:00:56.9]} 21... Bc4 {[%clk 0:01:17.6]} 22. Rc2 {[%clk
0:00:55.7]} 22... Nd7 {[%clk 0:01:17.3]} 23. Rcb2 {[%clk 0:00:53.2]} 23... Ne5
{[%clk 0:01:14.5]} 24. Nxc4 {[%clk 0:00:44.5]} 24... Nd3+ {[%clk 0:01:12.4]} 25.
Ke3 {[%clk 0:00:41.6]} 25... Nxb4 {[%clk 0:01:12.7]} 26. Nxd6+ {[%clk
0:00:41.7]} 26... exd6 {[%clk 0:01:13.6]} 27. Rxb4 {[%clk 0:00:39.6]} 27... Kd7
{[%clk 0:01:13.4]} 28. Ra4 {[%clk 0:00:38.7]} 28... Rb7 {[%clk 0:01:12.9]} 29.
Kd3 {[%clk 0:00:38.9]} 29... Rc6 {[%clk 0:01:11.6]} 30. Be3 {[%clk 0:00:38.3]}
30... a6 {[%clk 0:01:11.9]} 31. h4 {[%clk 0:00:38.2]} 31... Rb2 {[%clk
0:01:11.5]} 32. g3 {[%clk 0:00:37.3]} 32... h5 {[%clk 0:01:11]} 33. Bf4 {[%clk
0:00:36]} 33... Ke6 {[%clk 0:01:10]} 34. Ra5 {[%clk 0:00:34.8]} 34... Rf2 {[%clk
0:01:06.3]} 35. Ke3 {[%clk 0:00:34.9]} 35... Rc2 {[%clk 0:01:06.7]} 36. Kd4
{[%clk 0:00:30.8]} 36... R2xc3 {[%clk 0:01:03.5]} 37. Ra4 {[%clk 0:00:29.8]}
37... Rxf3 {[%clk 0:01:02.8]} 38. e5 {[%clk 0:00:29.8]} 38... d5 {[%clk
0:00:58.2]} 39. Rb4 {[%clk 0:00:29.2]} 39... Ra3 {[%clk 0:00:54.8]} 40. Bc1
{[%clk 0:00:25.9]} 40... Rxc1 {[%clk 0:00:46.5]} 41. Rb6+ {[%clk 0:00:25.1]}
41... Ke7 {[%clk 0:00:46.9]} 0-1

[Event "*** SCC Grand Prix: Titled Tuesday Blitz"]
[Site "Chess.com"]
[Date "2020.06.02"]
[Round "4"]
[White "DeGrootteZ"]
[Black "medalja"]
[Result "1-0"]
[WhiteElo "2626"]
[BlackElo "2415"]
[TimeControl "180+1"]
[EndTime "10:39:09 PDT"]
[Termination "DeGrootteZ won by resignation"]

1. e4 {[%clk 0:03:00.9]} 1... c6 {[%clk 0:02:58.8]} 2. d4 {[%clk 0:03:00.7]}
2... d5 {[%clk 0:02:59.7]} 3. exd5 {[%clk 0:03:01.5]} 3... cxd5 {[%clk
0:02:59.9]} 4. c4 {[%clk 0:03:02.4]} 4... Nf6 {[%clk 0:02:59.4]} 5. Nc3 {[%clk
0:03:02.6]} 5... Nc6 {[%clk 0:02:59.7]} 6. Bg5 {[%clk 0:03:02.7]} 6... e6 {[%clk
0:02:32.2]} 7. Nf3 {[%clk 0:03:02.1]} 7... Be7 {[%clk 0:02:31.7]} 8. c5 {[%clk
0:03:01.9]} 8... Ne4 {[%clk 0:02:19.1]} 9. Bxe7 {[%clk 0:03:02.8]} 9... Qxe7
{[%clk 0:02:19.1]} 10. Rc1 {[%clk 0:03:02.1]} 10... O-O {[%clk 0:02:18.2]} 11.
Be2 {[%clk 0:03:01.3]} 11... f5 {[%clk 0:02:18.2]} 12. O-O {[%clk 0:03:00.4]}
12... g5 {[%clk 0:02:12.1]} 13. Bb5 {[%clk 0:02:55.2]} 13... Bd7 {[%clk
0:02:10.5]} 14. Bxc6 {[%clk 0:02:54.6]} 14... Bxc6 {[%clk 0:01:29.5]} 15. Ne5
{[%clk 0:02:53.6]} 15... Rf6 {[%clk 0:01:26.9]} 16. f3 {[%clk 0:02:53]} 16...
Nxc3 {[%clk 0:01:26.7]} 17. Rxc3 {[%clk 0:02:53.9]} 17... Rh6 {[%clk 0:01:26.1]}
18. Qd2 {[%clk 0:02:50.1]} 18... Rf8 {[%clk 0:01:23.1]} 19. Re1 {[%clk
0:02:49.3]} 19... Kh8 {[%clk 0:01:17.4]} 20. Rce3 {[%clk 0:02:39.9]} 20... Rg8
{[%clk 0:01:09.5]} 21. R3e2 {[%clk 0:02:38.8]} 21... Be8 {[%clk 0:01:02.6]} 22.
Nd3 {[%clk 0:02:23.3]} 22... Bd7 {[%clk 0:01:01.6]} 23. Qe3 {[%clk 0:02:15]}
23... Qf7 {[%clk 0:00:59.6]} 24. g3 {[%clk 0:02:09.3]} 24... Bc8 {[%clk
0:00:51]} 25. f4 {[%clk 0:02:04.5]} 25... Rh3 {[%clk 0:00:49]} 26. fxg5 {[%clk
0:01:56.9]} 26... Rh5 {[%clk 0:00:26.5]} 27. h4 {[%clk 0:01:39.4]} 27... h6
{[%clk 0:00:26.2]} 28. Nf4 {[%clk 0:01:30.5]} 28... hxg5 {[%clk 0:00:25.8]} 29.
Nxh5 {[%clk 0:01:28.9]} 29... Qxh5 {[%clk 0:00:26.7]} 30. hxg5 {[%clk
0:01:27.9]} 30... Kg7 {[%clk 0:00:26]} 31. Rh2 {[%clk 0:01:22.4]} 31... Qg4
{[%clk 0:00:25.1]} 32. Qf4 {[%clk 0:01:03.3]} 32... Kf8 {[%clk 0:00:12.5]} 33.
Qxg4 {[%clk 0:01:00.9]} 33... fxg4 {[%clk 0:00:13.4]} 34. Re5 {[%clk 0:01:01.3]}
34... Bd7 {[%clk 0:00:12.3]} 35. Rh7 {[%clk 0:00:59.8]} 35... Ke8 {[%clk
0:00:12.4]} 36. Kf2 {[%clk 0:00:59.5]} 36... Rf8+ {[%clk 0:00:12]} 37. Kg2
{[%clk 0:00:59.6]} 37... Rf3 {[%clk 0:00:11.2]} 38. g6 {[%clk 0:00:59.3]} 38...
Rf8 {[%clk 0:00:10]} 39. g7 {[%clk 0:00:57.4]} 39... Rg8 {[%clk 0:00:10.2]} 40.
Rh8 {[%clk 0:00:57.7]} 40... Kf7 {[%clk 0:00:10.2]} 41. Rxg8 {[%clk 0:00:57.9]}
41... Kxg8 {[%clk 0:00:11.1]} 42. Rg5 {[%clk 0:00:58.2]} 42... e5 {[%clk
0:00:09.6]} 43. Rxe5 {[%clk 0:00:55.3]} 1-0

[Event "*** SCC Grand Prix: Titled Tuesday Blitz"]
[Site "Chess.com"]
[Date "2020.06.02"]
[Round "4"]
[White "GMCarbone"]
[Black "TregubovP"]
[Result "0-1"]
[WhiteElo "2331"]
[BlackElo "2560"]
[TimeControl "180+1"]
[EndTime "10:39:09 PDT"]
[Termination "TregubovP won by resignation"]

1. d4 {[%clk 0:03:00.9]} 1... Nf6 {[%clk 0:02:59.1]} 2. c4 {[%clk 0:02:59.3]}
2... e6 {[%clk 0:02:58.9]} 3. g3 {[%clk 0:02:56.6]} 3... d5 {[%clk 0:02:58.1]}
4. Nf3 {[%clk 0:02:55.5]} 4... dxc4 {[%clk 0:02:57.1]} 5. Bg2 {[%clk 0:02:55.4]}
5... Nc6 {[%clk 0:02:57.2]} 6. Qa4 {[%clk 0:02:53.7]} 6... Bb4+ {[%clk 0:02:55]}
7. Bd2 {[%clk 0:02:53.2]} 7... Bd6 {[%clk 0:02:55.6]} 8. Qxc4 {[%clk 0:02:51.2]}
8... e5 {[%clk 0:02:45.2]} 9. O-O {[%clk 0:02:48.7]} 9... O-O {[%clk 0:02:42.1]}
10. dxe5 {[%clk 0:02:45.8]} 10... Nxe5 {[%clk 0:02:41.6]} 11. Nxe5 {[%clk
0:02:45.7]} 11... Bxe5 {[%clk 0:02:41.8]} 12. Bc3 {[%clk 0:02:43.5]} 12... Qe7
{[%clk 0:02:40.9]} 13. Bxe5 {[%clk 0:02:40.2]} 13... Qxe5 {[%clk 0:02:40.8]} 14.
Nc3 {[%clk 0:02:41.1]} 14... c6 {[%clk 0:02:37.7]} 15. Rad1 {[%clk 0:02:37.5]}
15... Be6 {[%clk 0:02:35.8]} 16. Qd4 {[%clk 0:02:33]} 16... Qxd4 {[%clk
0:02:34.1]} 17. Rxd4 {[%clk 0:02:33.9]} 17... Rfd8 {[%clk 0:02:34.1]} 18. Rfd1
{[%clk 0:02:33.5]} 18... Rxd4 {[%clk 0:02:34.6]} 19. Rxd4 {[%clk 0:02:34.4]}
19... Kf8 {[%clk 0:02:33.6]} 20. f4 {[%clk 0:02:18.8]} 20... Ke7 {[%clk
0:02:29.1]} 21. e4 {[%clk 0:02:18.2]} 21... Rd8 {[%clk 0:02:22]} 22. Rxd8 {[%clk
0:02:17.9]} 22... Kxd8 {[%clk 0:02:22.1]} 23. e5 {[%clk 0:01:44.8]} 23... Ng4
{[%clk 0:02:11.6]} 24. Ne4 {[%clk 0:01:43.3]} 24... Bxa2 {[%clk 0:02:05]} 25.
Nd6 {[%clk 0:01:35.9]} 25... b6 {[%clk 0:01:42.8]} 26. Bxc6 {[%clk 0:01:34.2]}
26... f6 {[%clk 0:01:42.8]} 27. exf6 {[%clk 0:01:28]} 27... Nxf6 {[%clk
0:01:41.8]} 28. Nb5 {[%clk 0:01:20.3]} 28... a6 {[%clk 0:01:38]} 29. Nc3 {[%clk
0:01:17.5]} 29... Bb3 {[%clk 0:01:33.3]} 30. h3 {[%clk 0:01:15.2]} 30... Kc7
{[%clk 0:01:33.4]} 31. Bf3 {[%clk 0:01:14.9]} 31... Kd6 {[%clk 0:01:31.6]} 32.
Kf2 {[%clk 0:01:14.9]} 32... Kc5 {[%clk 0:01:27]} 33. Ke3 {[%clk 0:01:15]} 33...
a5 {[%clk 0:01:26.9]} 34. g4 {[%clk 0:01:14.4]} 34... b5 {[%clk 0:01:23]} 35. h4
{[%clk 0:01:00.6]} 35... b4 {[%clk 0:01:21.1]} 36. Ne4+ {[%clk 0:01:00.6]} 36...
Nxe4 {[%clk 0:01:20]} 37. Bxe4 {[%clk 0:01:01.5]} 37... h6 {[%clk 0:01:17.8]}
38. g5 {[%clk 0:01:00.8]} 38... a4 {[%clk 0:01:17.2]} 39. gxh6 {[%clk
0:00:40.8]} 39... gxh6 {[%clk 0:01:15.4]} 40. Bb1 {[%clk 0:00:41.4]} 40... a3
{[%clk 0:01:13.8]} 41. bxa3 {[%clk 0:00:41]} 41... bxa3 {[%clk 0:01:14.1]} 42.
h5 {[%clk 0:00:32.2]} 42... Kd5 {[%clk 0:01:11.8]} 43. Be4+ {[%clk 0:00:24]}
43... Ke6 {[%clk 0:01:06.7]} 44. Bb1 {[%clk 0:00:20.2]} 44... a2 {[%clk
0:01:05.4]} 45. Bxa2 {[%clk 0:00:20.7]} 45... Bxa2 {[%clk 0:01:05.6]} 46. Ke4
{[%clk 0:00:21]} 46... Kf6 {[%clk 0:01:05.2]} 47. Kf3 {[%clk 0:00:20.8]} 47...
Kf5 {[%clk 0:01:05.2]} 48. Kg3 {[%clk 0:00:21.2]} 48... Bd5 {[%clk 0:01:05.1]}
49. Kh4 {[%clk 0:00:19.6]} 49... Kxf4 {[%clk 0:01:04.8]} 0-1

[Event "*** SCC Grand Prix: Titled Tuesday Blitz"]
[Site "Chess.com"]
[Date "2020.06.02"]
[Round "4"]
[White "Stronger1799"]
[Black "FlightsOfFancy"]
[Result "1-0"]
[WhiteElo "2360"]
[BlackElo "1834"]
[TimeControl "180+1"]
[EndTime "10:39:09 PDT"]
[Termination "Stronger1799 won on time"]

1. e4 {[%clk 0:03:00.9]} 1... Nf6 {[%clk 0:02:59.7]} 2. e5 {[%clk 0:03:01.1]}
2... Nd5 {[%clk 0:02:59.4]} 3. c4 {[%clk 0:03:01.8]} 3... Nb6 {[%clk 0:02:58.6]}
4. b3 {[%clk 0:03:02.5]} 4... d5 {[%clk 0:02:39.4]} 5. exd6 {[%clk 0:03:02.4]}
5... cxd6 {[%clk 0:02:32.2]} 6. Bb2 {[%clk 0:03:02.2]} 6... d5 {[%clk
0:02:18.5]} 7. Nf3 {[%clk 0:02:49.2]} 7... Bg4 {[%clk 0:02:11.6]} 8. Be2 {[%clk
0:02:34.8]} 8... Nc6 {[%clk 0:02:09.6]} 9. O-O {[%clk 0:02:34.1]} 9... dxc4
{[%clk 0:02:04.1]} 10. bxc4 {[%clk 0:02:17.9]} 10... Qd6 {[%clk 0:01:14]} 11.
Na3 {[%clk 0:01:53.9]} 11... O-O-O {[%clk 0:01:04.7]} 12. Nb5 {[%clk 0:01:28.3]}
12... Qh6 {[%clk 0:01:02.1]} 13. d4 {[%clk 0:00:55.9]} 13... e6 {[%clk
0:00:57.9]} 14. a4 {[%clk 0:00:41.8]} 14... a6 {[%clk 0:00:50.7]} 15. a5 {[%clk
0:00:41]} 15... Nd7 {[%clk 0:00:42.5]} 16. d5 {[%clk 0:00:37.7]} 16... Nf6
{[%clk 0:00:28.2]} 17. Qb3 {[%clk 0:00:31]} 17... exd5 {[%clk 0:00:27.3]} 18.
Bxf6 {[%clk 0:00:27.1]} 18... gxf6 {[%clk 0:00:24.6]} 19. cxd5 {[%clk
0:00:27.4]} 19... Bxf3 {[%clk 0:00:07.7]} 20. Bxf3 {[%clk 0:00:25.6]} 20... Ne5
{[%clk 0:00:07.4]} 21. Qc3+ {[%clk 0:00:19.6]} 21... Kd7 {[%clk 0:00:03.8]} 22.
Rfe1 {[%clk 0:00:16.5]} 22... Nxf3+ {[%clk 0:00:02.2]} 23. Qxf3 {[%clk
0:00:12.4]} 1-0

[Event "*** SCC Grand Prix: Titled Tuesday Blitz"]
[Site "Chess.com"]
[Date "2020.06.02"]
[Round "4"]
[White "andy_rekt"]
[Black "ega2006"]
[Result "0-1"]
[WhiteElo "2032"]
[BlackElo "2383"]
[TimeControl "180+1"]
[EndTime "10:39:12 PDT"]
[Termination "ega2006 won on time"]

1. d4 {[%clk 0:03:00.9]} 1... Nf6 {[%clk 0:02:59.2]} 2. c4 {[%clk 0:02:56]} 2...
g6 {[%clk 0:02:59.6]} 3. Nc3 {[%clk 0:02:55.7]} 3... Bg7 {[%clk 0:02:59.5]} 4.
e4 {[%clk 0:02:54.2]} 4... d6 {[%clk 0:03:00.4]} 5. Nge2 {[%clk 0:02:53.5]} 5...
O-O {[%clk 0:03:01.3]} 6. Ng3 {[%clk 0:02:53.5]} 6... Nc6 {[%clk 0:02:59.3]} 7.
Be2 {[%clk 0:02:51.4]} 7... e5 {[%clk 0:02:59.2]} 8. d5 {[%clk 0:02:44.5]} 8...
Nd4 {[%clk 0:02:58.8]} 9. O-O {[%clk 0:02:42.2]} 9... c5 {[%clk 0:02:55.8]} 10.
dxc6 {[%clk 0:02:38.5]} 10... bxc6 {[%clk 0:02:54.8]} 11. Be3 {[%clk 0:02:30.7]}
11... c5 {[%clk 0:02:44.4]} 12. Bg5 {[%clk 0:02:20.2]} 12... h6 {[%clk
0:02:41.8]} 13. Bxf6 {[%clk 0:02:19.2]} 13... Bxf6 {[%clk 0:02:42.7]} 14. Nd5
{[%clk 0:02:19]} 14... Bg7 {[%clk 0:02:43.1]} 15. Bd3 {[%clk 0:01:51.5]} 15...
Be6 {[%clk 0:02:39.8]} 16. Ne2 {[%clk 0:01:48.5]} 16... f5 {[%clk 0:02:35.7]}
17. Nxd4 {[%clk 0:01:47.9]} 17... cxd4 {[%clk 0:02:35]} 18. f3 {[%clk
0:01:03.6]} 18... h5 {[%clk 0:02:20]} 19. Qa4 {[%clk 0:00:53]} 19... Bh6 {[%clk
0:02:06.2]} 20. Qa3 {[%clk 0:00:34.1]} 20... Kg7 {[%clk 0:01:40.4]} 21. f4
{[%clk 0:00:28.7]} 21... Bxd5 {[%clk 0:01:29.8]} 22. cxd5 {[%clk 0:00:26.3]}
22... Bxf4 {[%clk 0:01:29.4]} 23. exf5 {[%clk 0:00:25.1]} 23... gxf5 {[%clk
0:01:27.5]} 24. Qb3 {[%clk 0:00:18.9]} 24... Be3+ {[%clk 0:01:23.1]} 25. Kh1
{[%clk 0:00:18.2]} 25... e4 {[%clk 0:01:23.5]} 26. Bc4 {[%clk 0:00:15.2]} 26...
Rb8 {[%clk 0:01:18]} 27. Qc2 {[%clk 0:00:13.5]} 27... d3 {[%clk 0:01:01.5]} 28.
Qd1 {[%clk 0:00:09.5]} 28... Qg5 {[%clk 0:01:00]} 29. g3 {[%clk 0:00:05.6]}
29... Rxb2 {[%clk 0:00:57.9]} 30. Rb1 {[%clk 0:00:02.6]} 30... Rfb8 {[%clk
0:00:56.7]} 31. Rxb2 {[%clk 0:00:02.2]} 31... Rxb2 {[%clk 0:00:57.6]} 32. Bb3
{[%clk 0:00:02.1]} 32... h4 {[%clk 0:00:36.9]} 0-1

[Event "*** SCC Grand Prix: Titled Tuesday Blitz"]
[Site "Chess.com"]
[Date "2020.06.02"]
[Round "4"]
[White "MFguimaraes"]
[Black "Rodalquilar"]
[Result "0-1"]
[WhiteElo "2421"]
[BlackElo "2631"]
[TimeControl "180+1"]
[EndTime "10:39:13 PDT"]
[Termination "Rodalquilar won by resignation"]

1. e4 {[%clk 0:02:42.5]} 1... d5 {[%clk 0:03:00]} 2. exd5 {[%clk 0:02:41.6]}
2... Qxd5 {[%clk 0:03:00.9]} 3. Nc3 {[%clk 0:02:41.3]} 3... Qa5 {[%clk
0:03:00.8]} 4. d4 {[%clk 0:02:39.1]} 4... Nf6 {[%clk 0:03:01.1]} 5. Bc4 {[%clk
0:02:36.6]} 5... Bf5 {[%clk 0:03:01.1]} 6. Bd2 {[%clk 0:02:28.1]} 6... Qb4
{[%clk 0:03:00.9]} 7. Bb3 {[%clk 0:02:18.4]} 7... Qxd4 {[%clk 0:02:59.3]} 8. Nf3
{[%clk 0:02:18.8]} 8... Qd8 {[%clk 0:02:57.5]} 9. O-O {[%clk 0:02:15.8]} 9... e6
{[%clk 0:02:57.9]} 10. Qe2 {[%clk 0:02:14.5]} 10... Be7 {[%clk 0:02:57.5]} 11.
Rad1 {[%clk 0:02:12.7]} 11... Nbd7 {[%clk 0:02:57.9]} 12. Bf4 {[%clk 0:02:06.9]}
12... c6 {[%clk 0:02:54]} 13. Ne5 {[%clk 0:02:03.2]} 13... Qc8 {[%clk 0:02:54]}
14. g4 {[%clk 0:01:56.9]} 14... Bg6 {[%clk 0:02:43.3]} 15. h4 {[%clk 0:01:38.5]}
15... Nxe5 {[%clk 0:02:39.4]} 16. Bxe5 {[%clk 0:01:35.6]} 16... h6 {[%clk
0:02:39.9]} 17. h5 {[%clk 0:01:02]} 17... Bh7 {[%clk 0:02:39.6]} 18. f4 {[%clk
0:01:01.6]} 18... Rg8 {[%clk 0:02:14.7]} 19. g5 {[%clk 0:01:00.7]} 19... Bf5
{[%clk 0:02:04]} 20. gxf6 {[%clk 0:00:41]} 20... gxf6+ {[%clk 0:02:03.8]} 21.
Kh2 {[%clk 0:00:35.9]} 21... fxe5 {[%clk 0:02:03.5]} 22. fxe5 {[%clk 0:00:34.5]}
22... Qc7 {[%clk 0:01:43.4]} 23. Rxf5 {[%clk 0:00:21]} 23... exf5 {[%clk
0:01:43.6]} 24. Kh1 {[%clk 0:00:20.9]} 24... Rd8 {[%clk 0:01:28.6]} 25. e6
{[%clk 0:00:20.5]} 25... Rxd1+ {[%clk 0:01:27.7]} 26. Nxd1 {[%clk 0:00:20.6]}
26... f6 {[%clk 0:01:21.5]} 27. Ne3 {[%clk 0:00:20.3]} 27... Qe5 {[%clk
0:01:16.8]} 28. Qf3 {[%clk 0:00:19.2]} 28... Bd6 {[%clk 0:01:13.8]} 29. Qf2
{[%clk 0:00:15.6]} 29... Qe4+ {[%clk 0:01:10.8]} 30. Ng2 {[%clk 0:00:14.9]}
30... Rg3 {[%clk 0:00:35.2]} 31. c3 {[%clk 0:00:09.8]} 31... Rh3+ {[%clk
0:00:35.1]} 32. Kg1 {[%clk 0:00:10.2]} 32... Bh2+ {[%clk 0:00:35.4]} 33. Kf1
{[%clk 0:00:10.2]} 33... Rf3 {[%clk 0:00:36]} 0-1

[Event "*** SCC Grand Prix: Titled Tuesday Blitz"]
[Site "Chess.com"]
[Date "2020.06.02"]
[Round "4"]
[White "rynos0411"]
[Black "ChristopherYoo"]
[Result "0-1"]
[WhiteElo "2445"]
[BlackElo "2822"]
[TimeControl "180+1"]
[EndTime "10:39:13 PDT"]
[Termination "ChristopherYoo won by resignation"]

1. d4 {[%clk 0:03:00.9]} 1... Nf6 {[%clk 0:02:58.8]} 2. c4 {[%clk 0:03:00.7]}
2... g6 {[%clk 0:02:58.8]} 3. Nc3 {[%clk 0:03:00.3]} 3... d5 {[%clk 0:02:50.2]}
4. cxd5 {[%clk 0:03:00]} 4... Nxd5 {[%clk 0:02:50.8]} 5. Na4 {[%clk 0:03:00.1]}
5... Bg7 {[%clk 0:02:38.3]} 6. e4 {[%clk 0:02:59.9]} 6... Nb6 {[%clk 0:02:37.9]}
7. Be3 {[%clk 0:02:59.5]} 7... O-O {[%clk 0:02:36.1]} 8. Nf3 {[%clk 0:02:59.4]}
8... Nc6 {[%clk 0:02:24]} 9. Be2 {[%clk 0:02:59.1]} 9... Bg4 {[%clk 0:02:14.3]}
10. d5 {[%clk 0:02:53.3]} 10... Nxa4 {[%clk 0:02:00.3]} 11. Qxa4 {[%clk
0:02:52.9]} 11... Bxb2 {[%clk 0:01:32.7]} 12. Rb1 {[%clk 0:02:51]} 12... Bc3+
{[%clk 0:01:30.1]} 13. Kf1 {[%clk 0:02:51.1]} 13... Nb8 {[%clk 0:01:15.6]} 14.
Rxb7 {[%clk 0:02:46.9]} 14... Nd7 {[%clk 0:01:15.7]} 15. Rb3 {[%clk 0:02:07.6]}
15... Bg7 {[%clk 0:01:11.6]} 16. h3 {[%clk 0:02:07.6]} 16... Bxf3 {[%clk
0:01:11.3]} 17. Bxf3 {[%clk 0:02:08]} 17... Nb6 {[%clk 0:01:08.5]} 18. Qc6
{[%clk 0:02:06.7]} 18... Qc8 {[%clk 0:00:56]} 19. Kg1 {[%clk 0:01:59.5]} 19...
Be5 {[%clk 0:00:55.2]} 20. Be2 {[%clk 0:01:52.6]} 20... Bd6 {[%clk 0:00:46.1]}
21. f4 {[%clk 0:01:49.4]} 21... e5 {[%clk 0:00:44.1]} 22. fxe5 {[%clk
0:00:57.2]} 22... Bxe5 {[%clk 0:00:43.5]} 23. Bc5 {[%clk 0:00:57.1]} 23... Re8
{[%clk 0:00:40.4]} 24. Bg4 {[%clk 0:00:55.8]} 24... Qa6 {[%clk 0:00:39.4]} 25.
Ra3 {[%clk 0:00:40.9]} 25... Qc4 {[%clk 0:00:32.4]} 26. Bf2 {[%clk 0:00:24.2]}
26... Qxe4 {[%clk 0:00:29.7]} 27. g3 {[%clk 0:00:13.1]} 27... Bd4 {[%clk
0:00:25.6]} 28. Rf3 {[%clk 0:00:07.9]} 28... h5 {[%clk 0:00:19.2]} 29. Bf5
{[%clk 0:00:01.8]} 0-1

[Event "*** SCC Grand Prix: Titled Tuesday Blitz"]
[Site "Chess.com"]
[Date "2020.06.02"]
[Round "4"]
[White "GaboSalazar2001"]
[Black "MrChampion_Coach"]
[Result "0-1"]
[WhiteElo "2257"]
[BlackElo "2445"]
[TimeControl "180+1"]
[EndTime "10:39:15 PDT"]
[Termination "MrChampion_Coach won on time"]

1. e4 {[%clk 0:03:00.9]} 1... c5 {[%clk 0:02:59.7]} 2. Nf3 {[%clk 0:03:01.6]}
2... d6 {[%clk 0:02:59.9]} 3. d4 {[%clk 0:03:02.3]} 3... cxd4 {[%clk 0:03:00.8]}
4. Nxd4 {[%clk 0:03:03.2]} 4... Nf6 {[%clk 0:03:01.2]} 5. Nc3 {[%clk 0:03:03.9]}
5... a6 {[%clk 0:03:01.4]} 6. Be3 {[%clk 0:03:01.5]} 6... e6 {[%clk 0:02:59.5]}
7. Be2 {[%clk 0:03:01]} 7... b5 {[%clk 0:02:58.3]} 8. a4 {[%clk 0:02:47.2]} 8...
b4 {[%clk 0:02:57.8]} 9. Na2 {[%clk 0:02:47.8]} 9... Bb7 {[%clk 0:02:53.6]} 10.
Nxb4 {[%clk 0:02:40.7]} 10... Nxe4 {[%clk 0:02:46.5]} 11. O-O {[%clk 0:02:35.1]}
11... Be7 {[%clk 0:02:44.8]} 12. a5 {[%clk 0:02:20.8]} 12... O-O {[%clk
0:02:40]} 13. Nb3 {[%clk 0:01:45.4]} 13... Nd7 {[%clk 0:02:35.8]} 14. Bf3 {[%clk
0:01:36.6]} 14... Qc7 {[%clk 0:02:34.5]} 15. c3 {[%clk 0:01:23.6]} 15... f5
{[%clk 0:02:12.6]} 16. Qe2 {[%clk 0:01:23.1]} 16... Rfe8 {[%clk 0:02:04.5]} 17.
Bh5 {[%clk 0:01:13.8]} 17... g6 {[%clk 0:02:02.8]} 18. Bf3 {[%clk 0:01:04.7]}
18... Bf6 {[%clk 0:01:57.7]} 19. Rfd1 {[%clk 0:01:01.7]} 19... Ne5 {[%clk
0:01:42.6]} 20. Bxe4 {[%clk 0:00:56]} 20... fxe4 {[%clk 0:01:43.5]} 21. Bb6
{[%clk 0:00:30.4]} 21... Qc4 {[%clk 0:01:35.8]} 22. Qe1 {[%clk 0:00:23.7]} 22...
Qxb3 {[%clk 0:01:31.9]} 23. Rxd6 {[%clk 0:00:23]} 23... Rac8 {[%clk 0:01:03.7]}
24. Rad1 {[%clk 0:00:23]} 24... Qxb2 {[%clk 0:00:55.3]} 25. Bd4 {[%clk
0:00:22.1]} 25... Qb3 {[%clk 0:00:51.9]} 26. Rb6 {[%clk 0:00:20.9]} 26... Ba8
{[%clk 0:00:40.8]} 27. Nc6 {[%clk 0:00:13.1]} 27... Qc2 {[%clk 0:00:33]} 28.
Nxe5 {[%clk 0:00:11.2]} 28... e3 {[%clk 0:00:31.1]} 0-1

[Event "*** SCC Grand Prix: Titled Tuesday Blitz"]
[Site "Chess.com"]
[Date "2020.06.02"]
[Round "4"]
[White "MalcolmPein"]
[Black "JesseKraai"]
[Result "0-1"]
[WhiteElo "2216"]
[BlackElo "2430"]
[TimeControl "180+1"]
[EndTime "10:39:16 PDT"]
[Termination "JesseKraai won by resignation"]

1. d4 {[%clk 0:02:59.8]} 1... e6 {[%clk 0:02:59.3]} 2. c4 {[%clk 0:02:56.1]}
2... Nf6 {[%clk 0:02:58.4]} 3. Nc3 {[%clk 0:02:55.6]} 3... Bb4 {[%clk
0:02:58.2]} 4. e3 {[%clk 0:02:55.1]} 4... O-O {[%clk 0:02:57.4]} 5. Bd3 {[%clk
0:02:53.8]} 5... d5 {[%clk 0:02:56.8]} 6. a3 {[%clk 0:02:53.6]} 6... Bxc3+
{[%clk 0:02:50.6]} 7. bxc3 {[%clk 0:02:53.4]} 7... dxc4 {[%clk 0:02:49.1]} 8.
Bxc4 {[%clk 0:02:53.5]} 8... Nbd7 {[%clk 0:02:49.2]} 9. Ne2 {[%clk 0:02:50.4]}
9... b6 {[%clk 0:02:48.4]} 10. O-O {[%clk 0:02:49.7]} 10... Bb7 {[%clk
0:02:48.5]} 11. f3 {[%clk 0:02:48]} 11... c5 {[%clk 0:02:48.1]} 12. e4 {[%clk
0:02:45.9]} 12... Qc7 {[%clk 0:02:47.8]} 13. Bd3 {[%clk 0:02:45.6]} 13... Rac8
{[%clk 0:02:42.4]} 14. Qe1 {[%clk 0:02:31]} 14... a6 {[%clk 0:02:35]} 15. Qh4
{[%clk 0:02:29]} 15... e5 {[%clk 0:02:16.4]} 16. d5 {[%clk 0:02:27.1]} 16... b5
{[%clk 0:02:12.5]} 17. Ng3 {[%clk 0:02:20.6]} 17... c4 {[%clk 0:02:06.8]} 18.
Bc2 {[%clk 0:02:19.6]} 18... g6 {[%clk 0:02:04.8]} 19. Bg5 {[%clk 0:02:09.5]}
19... Rfe8 {[%clk 0:01:55.8]} 20. Kh1 {[%clk 0:02:05.6]} 20... Kg7 {[%clk
0:01:54]} 21. Nf5+ {[%clk 0:01:38.4]} 21... gxf5 {[%clk 0:01:47.8]} 22. Bxf6+
{[%clk 0:01:31.8]} 22... Nxf6 {[%clk 0:01:43.9]} 23. Qg5+ {[%clk 0:01:32.7]}
23... Kf8 {[%clk 0:01:41.1]} 24. Qxf6 {[%clk 0:01:29.9]} 24... Kg8 {[%clk
0:01:15]} 25. exf5 {[%clk 0:01:06.5]} 25... Qd8 {[%clk 0:01:08]} 26. Qh6 {[%clk
0:01:03.6]} 26... f6 {[%clk 0:01:07.1]} 27. Rad1 {[%clk 0:00:58.3]} 27... Qd6
{[%clk 0:01:04.8]} 28. Rfe1 {[%clk 0:00:52.1]} 28... Kh8 {[%clk 0:01:00.5]} 29.
Re4 {[%clk 0:00:51]} 29... Rg8 {[%clk 0:00:58.7]} 30. Rh4 {[%clk 0:00:49.8]}
30... Rg7 {[%clk 0:00:57.8]} 31. Be4 {[%clk 0:00:50.3]} 31... Rcg8 {[%clk
0:00:55.1]} 32. Qe3 {[%clk 0:00:45.5]} 32... Rxg2 {[%clk 0:00:46.1]} 33. f4
{[%clk 0:00:45.5]} 33... R2g7 {[%clk 0:00:36.9]} 34. Bf3 {[%clk 0:00:37.6]}
34... exf4 {[%clk 0:00:33.8]} 35. Qxf4 {[%clk 0:00:36.6]} 35... Qxa3 {[%clk
0:00:32.7]} 36. d6 {[%clk 0:00:28.4]} 36... Qb3 {[%clk 0:00:26.4]} 37. Qd2
{[%clk 0:00:16.3]} 0-1